Cogmind - Beta 10.2 @@@ ROGUE MODE // 2022.01.23 @ 01:42:45 Player: Jezoensis Result: Self-destructed Performance ------------- Evolutions (3) 1500 Regions Visited (11) 2200 Robots Destroyed (91) 455 Value Destroyed (2415) 2415 Prototype IDs (28) 560 Alien Tech Used (0) 0 Bonus (1138) 1138 TOTAL SCORE: 8268 Bonus ------- High Alert Combat Kills 138 Entered Garrisons 200 Used RIF Installer 500 Aligned with FarCom 300 Cogmind --------- Core Integrity 631/700 Matter 253/300 Energy 7/100 System Corruption 11% Temperature Cool (0) Movement Core (100) Ox1 Location -7/Factory Parts ------- > --- POWER (1) -------- (None) > --- PROPULSION (3) --- (None) > --- UTILITY (6) ------ System Restoration Module Supersonic Drone Bay (0/1) > --- WEAPON (3) ------- (None) > --- INVENTORY (4) ---- Improved Deuterium Engine Transmission Jammer Proton Missile Launcher Peak State ------------ > --- POWER ------------ Cooled Ion Engine > --- PROPULSION ------- Light Treads Light Treads Light Treads > --- UTILITY ---------- Large Storage Unit Large Storage Unit Enhanced Optical Array Advanced Terrain Scanner Terrain Scan Processor Supersonic Drone Bay > --- WEAPON ----------- Plasma Cannon Assault Cannon Katana > --- INVENTORY -------- Improved Deuterium Engine Light Treads Light Treads Light Treads Improved Cooling System Structural Scanner Weapon Cycler Transmission Jammer Transmission Jammer Hardened Medium Armor Plating Long-range Tractor Beam Improved EM Pulse Cannon Plasma Cannon Enhanced Autogun Proton Missile Launcher Proton Missile Launcher [Rating: 39] Favorites ----------- Power Cooled Ion Engine Engine Cooled Ion Engine Propulsion Light Treads Treads Light Treads Utility Large Storage Unit Device Improved Terrain Scanner Storage Large Storage Unit Processor Terrain Scan Processor Hackware System Shield Protection Light Armor Plating Weapon Improved EM Shotgun Energy Gun Improved EM Shotgun Energy Cannon Plasma Cannon Ballistic Gun Autogun Ballistic Cannon Assault Cannon Launcher Rocket Launcher Special Weapon Mining Laser Slashing Weapon Katana Build | -11 -10 -10 -9 -9 -9 -8 -8 -8 -7 -7 -7 ------- Run | Scr Mat Min Mat Min Exi Min Mat Gar Fac Was Fac Slots Evolved 6 | . . . 2 . . . 2 . 2 . . Power . | . . . . . . . . . . . . Propulsion 1 | . . . 1 . . . . . . . . Utility 4 | . . . 1 . . . 2 . 1 . . Weapon 1 | . . . . . . . . . 1 . . Parts Attached 148 | 7 4 . 12 6 6 9 82 6 11 4 1 Power 7 | 1 . . 2 1 . . 3 . . . . Engine 7 | 1 . . 2 1 . . 3 . . . . Core . | . . . . . . . . . . . . Reactor . | . . . . . . . . . . . . Propulsion 18 | 2 1 . 3 2 . . 9 . . 1 . Treads 18 | 2 1 . 3 2 . . 9 . . 1 . Leg . | . . . . . . . . . . . . Wheel . | . . . . . . . . . . . . Hover . | . . . . . . . . . . . . Flight . | . . . . . . . . . . . . Utility 82 | 2 3 . 1 1 6 7 45 4 9 3 1 Device 49 | 1 2 . 1 . 1 4 27 3 6 3 1 Storage 9 | 1 1 . . . 4 . 3 . . . . Processor 4 | . . . . . . . 1 . 3 . . Hackware 2 | . . . . . . . 2 . . . . Protection 18 | . . . . 1 1 3 12 1 . . . Artifact . | . . . . . . . . . . . . Weapon 41 | 2 . . 6 2 . 2 25 2 2 . . Energy Gun 15 | 1 . . 2 1 . 1 10 . . . . Energy Cannon 5 | . . . 2 . . . 1 1 1 . . Ballistic Gun 9 | 1 . . 2 . . . 6 . . . . Ballistic Cannon 2 | . . . . . . . 1 1 . . . Launcher 5 | . . . . 1 . 1 3 . . . . Special Weapon 3 | . . . . . . . 3 . . . . Impact Weapon . | . . . . . . . . . . . . Slashing Weapon 2 | . . . . . . . 1 . 1 . . Piercing Weapon . | . . . . . . . . . . . . Special Melee Weapon . | . . . . . . . . . . . . Unidentified Prototypes 3 | . . . 1 . . . 2 . . . . Parts Lost 6 | . . . . . . 1 3 . . 2 . Power . | . . . . . . . . . . . . Propulsion 3 | . . . . . . . 1 . . 2 . Utility 1 | . . . . . . 1 . . . . . Weapon 2 | . . . . . . . 2 . . . . Highest Loss Streak 2 | . . . . . . 1 1 . . 2 . Average Slot Usage (%) 97 | . 98 100 95 100 100 100 99 100 99 78 8 Engine 9 | . 14 14 11 11 11 11 9 9 7 5 . Treads 28 | . 28 28 33 33 33 33 26 27 23 17 . Device 14 | . 12 14 18 18 11 10 15 15 15 11 8 Storage 15 | . 14 14 11 11 12 22 17 18 15 12 . Processor 5 | . . . . . . . 9 9 15 12 . Protection 1 | . . . . 3 9 . 1 2 . . . Energy Gun 9 | . 14 14 3 10 11 10 13 . . . . Energy Cannon 2 | . . . 7 . . . . 6 7 5 . Ballistic Gun 6 | . 14 14 11 11 11 11 2 5 . . . Ballistic Cannon 1 | . . . . . . . . 6 7 5 . Slashing Weapon 1 | . . . . . . . . . 6 5 . Naked Turns 26 | . . . . . . . . . . 26 . Heaviest Build 60 | 14 18 18 21 28 52 51 53 60 56 56 3 Greatest Support 60 | 40 40 40 60 60 60 60 60 60 60 60 3 Greatest Overweight (x) . | . . . . . . . . . . . . Average Overweight (x) . | . . . . . . . . . . . . Largest Inventory Capacity 18 | 6 8 8 8 8 18 16 16 16 16 16 4 Average Capacity 12 | 5 6 8 8 8 11 16 15 16 16 12 4 Most Carried 16 | 4 8 8 8 8 11 12 16 15 16 16 4 Average Carried 11 | 2 4 8 7 7 9 10 14 15 15 12 3 Final Capacity 16 | 6 8 8 8 8 16 16 16 16 16 4 4 Final Carried 16 | 3 8 8 8 8 10 12 15 15 16 4 3 Class Distribution -------------------- 37% | Scavenger-Skirmisher 30% | Scavenger-Mutant 17% | Mutant 14% | Scavenger-Assassin Dominant Class ---------------- Mutant | -10/Materials Mutant | -10/Mines Scavenger-Mutant | -9/Materials Scavenger-Mutant | -9/Mines Scavenger-Mutant | -9/Exiles Scavenger-Skirmisher | -8/Mines Scavenger-Skirmisher | -8/Materials Scavenger-Skirmisher | -8/Garrison Scavenger-Assassin | -7/Factory Scavenger-Assassin | -7/Waste Mutant | -7/Factory Resources | -11 -10 -10 -9 -9 -9 -8 -8 -8 -7 -7 -7 ----------- Run | Scr Mat Min Mat Min Exi Min Mat Gar Fac Was Fac Matter Collected 2197 | 318 103 . 175 153 . 244 976 64 . . 164 Remotely 263 | . . . . . . . 263 . . . . Salvage Created 3329 | 157 294 . 293 313 . 339 1839 64 30 . . Parts 194 | 9 19 . 28 21 . 25 86 4 2 . . Haulers Intercepted 8 | . 1 . 3 . . . 4 . . . . Recyclers Shooed 2 | . 1 . 1 . . . . . . . . Parts Field Recycled . | . . . . . . . . . . . . Retrieved Matter . | . . . . . . . . . . . . Parts Self-Destructed . | . . . . . . . . . . . . Prevented . | . . . . . . . . . . . . Kills | -11 -10 -10 -9 -9 -9 -8 -8 -8 -7 -7 -7 ------- Run | Scr Mat Min Mat Min Exi Min Mat Gar Fac Was Fac Combat Hostiles Destroyed 61 | . 6 . 5 8 . 7 33 2 . . . Guns 41 | . 6 . 4 6 . 5 20 . . . . Cannons 5 | . . . 1 . . . 2 2 . . . AOE 14 | . . . . 2 . 2 10 . . . . Classes Destroyed 12 | 2 5 . 1 1 . 2 . 1 . . . Worker 3 | . . . . . . 2 1 . . . . Builder 6 | . 1 . . . . 2 2 . 1 . . Tunneler 5 | 3 . . . 1 . 1 . . . . . Hauler 8 | . 1 . 3 . . . 4 . . . . Recycler 3 | 1 . . . . . . 2 . . . . Watcher 5 | . 1 . . . . . 4 . . . . Swarmer 16 | . 3 . 3 . . 3 7 . . . . Grunt 32 | . 3 . 1 6 . 3 19 . . . . Brawler 2 | . . . . 2 . . . . . . . Duelist 2 | . . . . . . . . 2 . . . Sentry 7 | . . . 1 . . . 6 . . . . Hunter 2 | . . . . . . 1 1 . . . . Best Kill Streak 7 | 3 4 . 3 4 . 4 7 2 1 . . Combat Bots Only 7 | . 3 . 3 3 . 3 7 2 . . . Max Kills in Single Turn 3 | 1 1 . 1 2 . 3 3 1 1 . . Gunslinging 1 | . . . . . . . 1 . . . . Exploded 3 | . . . . 1 . 2 3 . . . . Melee . | . . . . . . . . . . . . Uniques/NPCs Destroyed . | . . . . . . . . . . . . Combat | -11 -10 -10 -9 -9 -9 -8 -8 -8 -7 -7 -7 -------- Run | Scr Mat Min Mat Min Exi Min Mat Gar Fac Was Fac Damage Taken 2023 | . 129 . 79 261 . 239 1156 . . 159 . Core 338 | . 28 . 9 27 . 19 186 . . 69 . Absorbed by Shields . | . . . . . . . . . . . . Core Remaining (%) 85 | 100 . 88 . . . 86 . 66 . . . Volleys Fired 169 | 16 21 . 17 18 . 16 72 8 1 . . Largest 2 | 2 2 . 2 2 . 2 2 2 2 . . Hottest 124 | 60 60 . 83 68 . 68 100 119 124 . . Shots Fired 317 | 32 42 . 34 33 . 29 130 15 2 . . Gun 260 | 32 42 . 20 30 . 27 109 . . . . Cannon 40 | . . . 14 . . . 9 15 2 . . Launcher 13 | . . . . 3 . 2 8 . . . . Special 4 | . . . . . . . 4 . . . . Kinetic 116 | 16 21 . 17 15 . 14 25 7 1 . . Thermal 27 | . . . 14 . . . 4 8 1 . . Explosive 13 | . . . . 3 . 2 8 . . . . Electromagnetic 161 | 16 21 . 3 15 . 13 93 . . . . Robot Hit Streak 27 | 5 10 . 8 19 . 20 27 7 1 . . Robot Miss Streak 3 | 3 3 . 2 3 . 2 3 1 1 . . Penetration Max . | . . . . . . . . . . . . Secondary Targets 9 | . 1 . 1 1 . 1 5 . . . . Max Gunslinging Chain 1 | . 1 . 1 1 . 1 1 . . . . Shots Hit Robots 233 | 18 26 . 23 26 . 22 102 11 5 . . Core Hits 168 | 5 14 . 10 15 . 23 96 4 1 . . Critical Hits 1 | 1 . . . . . . . . . . . Critical Kills 1 | 1 . . . . . . . . . . . Critical Parts Destroyed . | . . . . . . . . . . . . Melee Attacks 10 | . . . . . . . . . 10 . . Impact . | . . . . . . . . . . . . Slashing 10 | . . . . . . . . . 10 . . Piercing . | . . . . . . . . . . . . Sneak Attacks 2 | . . . . . . . . . 2 . . Combat Hostiles . | . . . . . . . . . . . . Follow-up Attacks . | . . . . . . . . . . . . Damage Inflicted 6386 | 302 487 . 334 805 . 689 3253 267 249 . . Guns 3231 | 257 366 . 153 423 . 387 1645 . . . . Cannons 598 | . . . 181 . . . 150 267 . . . Explosions 2285 | 45 121 . . 382 . 296 1441 . . . . Melee 249 | . . . . . . . . . 249 . . Ramming 23 | . . . . . . 6 17 . . . . Kinetic 1115 | 138 131 . 115 164 . 125 300 142 . . . Thermal 1055 | 45 121 . 181 . . 91 492 125 . . . Explosive 1536 | . . . . 382 . 205 949 . . . . Electromagnetic 2408 | 119 235 . 38 259 . 262 1495 . . . . Impact . | . . . . . . . . . . . . Slashing 249 | . . . . . . . . . 249 . . Piercing . | . . . . . . . . . . . . Highest Corruption 11 | . . . 3 3 3 3 . . 1 11 11 Average Corruption 3 | . . . 3 3 3 3 . . 1 9 11 Corruption Purged . | . . . . . . . . . . . . Effects 27 | . . . 1 4 5 7 . . 2 6 2 Message Errors 6 | . . . . 2 1 1 . . 1 . 1 Matter Fused 5 | . . . . . 2 1 . . . 1 1 Heat Flow Errors 3 | . . . 1 . . 1 . . . 1 . Energy Discharges 1 | . . . . . . . . . 1 . . Data Loss (minor) 5 | . . . . 1 2 . . . . 2 . Misdirections 2 | . . . . . . . . . . 2 . Targeting Errors 4 | . . . . 1 . 3 . . . . . Weapon Failures 1 | . . . . . . 1 . . . . . Overload Shots . | . . . . . . . . . . . . Overflow Damage 208 | 33 15 . . 12 . . 34 . 114 . . Projectiles . | . . . . . . . . . . . . Explosions 94 | 33 15 . . 12 . . 34 . . . . Melee 114 | . . . . . . . . . 114 . . Knockbacks 3 | . . . . . . . 1 2 . . . Impact . | . . . . . . . . . . . . Kinetic 3 | . . . . . . . 1 2 . . . Secondary . | . . . . . . . . . . . . Self-Inflicted Damage 188 | . 13 . . . . . 175 . . . . Shots 6 | . 1 . . . . . 5 . . . . Rammed 5 | . . . . 1 . 1 3 . . . . Targets Rammed 5 | . . . . 1 . 1 3 . . . . Kicked . | . . . . . . . . . . . . Crushed . | . . . . . . . . . . . . Highest Temperature 197 | . 45 . 186 32 . 197 153 42 30 130 . Average Temperature 36 | . 26 . 33 10 . 83 27 21 15 72 . Received Heat Transfer 642 | . 45 . . 129 . 81 387 . . . . Siege Activations . | . . . . . . . . . . . . Robots Corrupted 1 | . . . . . . . 1 . . . . Combat Hostiles 1 | . . . . . . . 1 . . . . Parts Fried 12 | . . . . . . . 12 . . . . Impact Corruptions . | . . . . . . . . . . . . Robots Melted . | . . . . . . . . . . . . Combat Hostiles . | . . . . . . . . . . . . Parts Melted 3 | . . . . . . . 3 . . . . Heat Transferred 1555 | 50 150 . 370 . . 150 650 185 . . . Parts Sabotaged . | . . . . . . . . . . . . Parts Stolen . | . . . . . . . . . . . . Parts Stripped . | . . . . . . . . . . . . Power Chain Reactions 13 | 1 2 . . . . 1 9 . . . . Missiles Intercepted . | . . . . . . . . . . . . Alert | -11 -10 -10 -9 -9 -9 -8 -8 -8 -7 -7 -7 ------- Run | Scr Mat Min Mat Min Exi Min Mat Gar Fac Was Fac Peak Influence 573 | 20 181 36 237 287 . 216 573 442 233 46 28 Initial 372 | . 13 36 13 92 . . 5 372 231 31 28 Average 208 | 10 89 36 154 226 . 103 319 411 190 33 27 Maximum Alert Level 2 | . . . 1 1 . 1 2 2 1 . . Low Security (%) 48 | 100 100 100 76 25 . 86 18 . 25 100 100 Level 1 40 | . . . 23 74 . 13 55 38 74 . . Level 2 11 | . . . . . . . 25 61 . . . Level 3 . | . . . . . . . . . . . . Level 4 . | . . . . . . . . . . . . Level 5 . | . . . . . . . . . . . . High Security . | . . . . . . . . . . . . Max Security . | . . . . . . . . . . . . Squads Dispatched 9 | . . . . . . . 8 . 1 . . Investigation 2 | . . . . . . . 1 . 1 . . Extermination . | . . . . . . . . . . . . Reinforcement 7 | . . . . . . . 7 . . . . Assault . | . . . . . . . . . . . . Garrison . | . . . . . . . . . . . . Intercept . | . . . . . . . . . . . . Construction Impeded 2 | . . . . . . . 2 . . . . Haulers Reinforced . | . . . . . . . . . . . . Stealth | -11 -10 -10 -9 -9 -9 -8 -8 -8 -7 -7 -7 --------- Run | Scr Mat Min Mat Min Exi Min Mat Gar Fac Was Fac Distress Signals 5 | . 2 . 1 . . . 2 . . . . Communications Jammed . | . . . . . . . . . . . . Distress Signals . | . . . . . . . . . . . . Times Spotted 99 | . 9 . 10 8 . 7 54 2 3 6 . Peak Tracking Total 6 | . 5 . 4 3 . 3 6 2 2 6 . Tactical Retreats 6 | . . . . . . 1 4 1 . . . Traps | -11 -10 -10 -9 -9 -9 -8 -8 -8 -7 -7 -7 ------- Run | Scr Mat Min Mat Min Exi Min Mat Gar Fac Was Fac Traps Triggered 2 | . . . . . . . . . 2 . . Indirectly . | . . . . . . . . . . . . Trap Hack Attempts . | . . . . . . . . . . . . Triggered . | . . . . . . . . . . . . Disarmed . | . . . . . . . . . . . . Reprogrammed . | . . . . . . . . . . . . Reused . | . . . . . . . . . . . . Traps Extracted . | . . . . . . . . . . . . Installed . | . . . . . . . . . . . . Triggered 2 | . . . . . . . 2 . . . . Machines | -11 -10 -10 -9 -9 -9 -8 -8 -8 -7 -7 -7 ---------- Run | Scr Mat Min Mat Min Exi Min Mat Gar Fac Was Fac Machines Disabled 4 | . 1 . 1 . . . 1 1 . . . Max in Single Turn 1 | . 1 . 1 . . . 1 1 . . . Garrison Access 1 | . . . . . . . . . 1 . . Machines Sabotaged . | . . . . . . . . . . . . Garrisons Compromised . | . . . . . . . . . . . . Overloaded Fab Kills . | . . . . . . . . . . . . Fab Network Shutdowns . | . . . . . . . . . . . . Hacking | -11 -10 -10 -9 -9 -9 -8 -8 -8 -7 -7 -7 --------- Run | Scr Mat Min Mat Min Exi Min Mat Gar Fac Was Fac Machines Accessed 19 | . 4 . 4 . 1 . 6 . 4 . . Terminals 14 | . 4 . 3 . . . 4 . 3 . . Fabricators . | . . . . . . . . . . . . Repair Stations 1 | . . . . . . . 1 . . . . Recycling Units 1 | . . . 1 . . . . . . . . Scanalyzers . | . . . . . . . . . . . . Garrison Access 2 | . . . . . . . 1 . 1 . . Total Hacks 66 | . 23 . 13 . 1 . 19 . 10 . . Successful 42 | . 15 . 9 . 1 . 10 . 7 . . Failed 23 | . 7 . 4 . . . 9 . 3 . . Catastrophic 2 | . 1 . . . . . . . 1 . . Database Lockouts 1 | . 1 . . . . . . . . . . Manual 49 | . 17 . 10 . 1 . 14 . 7 . . Terminals 60 | . 23 . 12 . . . 16 . 9 . . Fabricators . | . . . . . . . . . . . . Repair Stations 2 | . . . . . . . 2 . . . . Recycling Units 1 | . . . 1 . . . . . . . . Scanalyzers . | . . . . . . . . . . . . Garrison Access 2 | . . . . . . . 1 . 1 . . Terminal Hacks 21 | . 9 . 4 . 1 . 4 . 3 . . Part Schematic 1 | . . . . . . . 1 . . . . Robot Analysis 3 | . 2 . 1 . . . . . . . . Prototype ID Bank 1 | . 1 . . . . . . . . . . Branch Access Points 1 | . 1 . . . . . . . . . . Terminal Index 3 | . 1 . . . . . 1 . 1 . . Unreport Threat 2 | . 1 . . . . . 1 . . . . Locate Traps 4 | . 1 . 2 . . . 1 . . . . Hauler Manifests 1 | . . . . . . . . . 1 . . Registered Components 1 | . . . . . . . . . 1 . . Zone Layout 3 | . 2 . 1 . . . . . . . . EX-Prototype ID Bank 1 | . . . . . 1 . . . . . . Fabricator Hacks . | . . . . . . . . . . . . Repair Station Hacks 2 | . . . . . . . 2 . . . . Scan Component 1 | . . . . . . . 1 . . . . Repair 1 | . . . . . . . 1 . . . . Recycling Unit Hacks . | . . . . . . . . . . . . Scanalyzer . | . . . . . . . . . . . . Garrison Access Hacks 2 | . . . . . . . 1 . 1 . . Unlock Access 1 | . . . . . . . 1 . . . . Seal Access 1 | . . . . . . . . . 1 . . Unauthorized Hacks 17 | . 6 . 5 . . . 3 . 3 . . Terminals 16 | . 6 . 4 . . . 3 . 3 . . Track 6 | . 3 . 3 . . . . . . . . Botnet 7 | . 2 . 1 . . . 2 . 2 . . Operators 3 | . 1 . . . . . 1 . 1 . . Fabricators . | . . . . . . . . . . . . Repair Stations . | . . . . . . . . . . . . Recycling Units 1 | . . . 1 . . . . . . . . Recyclers 1 | . . . 1 . . . . . . . . Scanalyzers . | . . . . . . . . . . . . Garrison Access . | . . . . . . . . . . . . Data Cores Recovered . | . . . . . . . . . . . . Used . | . . . . . . . . . . . . Hacking Detections 15 | . 3 . 3 . . . 6 . 3 . . Full Trace Events 1 | . . . . . . . . . 1 . . Feedback Events . | . . . . . . . . . . . . Feedback Blocked . | . . . . . . . . . . . . Robot Schematics Acquired . | . . . . . . . . . . . . Robots Built . | . . . . . . . . . . . . Matter . | . . . . . . . . . . . . Time . | . . . . . . . . . . . . Total Robot Build Rating . | . . . . . . . . . . . . Part Schematics Acquired 1 | . . . . . . . 1 . . . . Parts Built . | . . . . . . . . . . . . Matter . | . . . . . . . . . . . . Time . | . . . . . . . . . . . . Total Part Build Rating . | . . . . . . . . . . . . Parts Repaired 1 | . . . . . . . 1 . . . . Time 26 | . . . . . . . 26 . . . . Parts Recycled . | . . . . . . . . . . . . Recycled Matter . | . . . . . . . . . . . . Retrieved Matter . | . . . . . . . . . . . . Retrieved Components . | . . . . . . . . . . . . Parts Scanalyzed . | . . . . . . . . . . . . Part Schematics Acquired . | . . . . . . . . . . . . Parts Damaged . | . . . . . . . . . . . . Bothacking | -11 -10 -10 -9 -9 -9 -8 -8 -8 -7 -7 -7 ------------ Run | Scr Mat Min Mat Min Exi Min Mat Gar Fac Was Fac Used RIF Installer 1 | . . . . . . . . 1 . . . Robots Hacked . | . . . . . . . . . . . . Non-combat . | . . . . . . . . . . . . Combat . | . . . . . . . . . . . . Robot Hacks Applied . | . . . . . . . . . . . . Relay Couplers Released . | . . . . . . . . . . . . Robots Rewired . | . . . . . . . . . . . . Allies Hacked . | . . . . . . . . . . . . Hacks Repelled . | . . . . . . . . . . . . Allies | -11 -10 -10 -9 -9 -9 -8 -8 -8 -7 -7 -7 -------- Run | Scr Mat Min Mat Min Exi Min Mat Gar Fac Was Fac Total Allies . | . . . . . . . . . . . . Largest Group . | . . . . . . . . . . . . Highest-Rated Group . | . . . . . . . . . . . . Highest-Rated Ally . | . . . . . . . . . . . . Total Orders 8 | . . . . . . . . . 5 2 1 EXPLORE 5 | . . . . . . . . . 3 1 1 RETURN 3 | . . . . . . . . . 2 1 . Ally Attacks . | . . . . . . . . . . . . Total Damage . | . . . . . . . . . . . . Kills . | . . . . . . . . . . . . Allies Corrupted . | . . . . . . . . . . . . Allies Melted . | . . . . . . . . . . . . Intel | -11 -10 -10 -9 -9 -9 -8 -8 -8 -7 -7 -7 ------- Run | Scr Mat Min Mat Min Exi Min Mat Gar Fac Was Fac Robot Analysis Total 3 | . 2 . 1 . . . . . . . . Derelict Logs Recovered . | . . . . . . . . . . . . Drone Launches 5 | . . . . . . . . . 3 1 1 Drone Recoveries 4 | . . . . . . . . . 3 1 . Exploration | -11 -10 -10 -9 -9 -9 -8 -8 -8 -7 -7 -7 ------------- Run | Scr Mat Min Mat Min Exi Min Mat Gar Fac Was Fac Turns Passed 4379 | 113 360 76 369 314 439 496 1336 175 540 110 51 Spaces Moved 2328 | 42 178 48 180 156 266 271 607 91 300 101 88 Core 156 | 15 . . . . . . . . . 53 88 Treads 2172 | 27 178 48 180 156 266 271 607 91 300 48 . Legs . | . . . . . . . . . . . . Wheels . | . . . . . . . . . . . . Hover . | . . . . . . . . . . . . Flight . | . . . . . . . . . . . . Fastest Speed 50 | 50 160 160 160 160 160 160 160 160 160 50 50 Average Speed 152 | 120 160 160 160 160 160 160 160 160 160 102 50 Slowest Speed 160 | 160 160 160 160 160 160 160 160 160 160 160 50 Overloaded Moves . | . . . . . . . . . . . . Propulsion Burnouts . | . . . . . . . . . . . . Robots Hopped . | . . . . . . . . . . . . Cave-ins Triggered . | . . . . . . . . . . . . Exploration Rate (%) 41 | 5 42 30 22 38 64 80 68 32 22 94 5 Regions Visited 11 Branch Regions 4 Pre-discovered Areas 1 | . . . . 1 . . . . . . . Known Exits Taken 2 | . 1 . . . . . 1 . . . . Unknown Exits Taken 6 | 1 . 1 1 1 1 1 . . . . . Scrap Searched . | . . . . . . . . . . . . Spaces Dug 9 | . . . . . . . 4 . 5 . . Terrain Destroyed 159 | . 6 . . 37 . 25 86 . 5 . . Melee 5 | . . . . . . . . . 5 . . Projectile 5 | . . . . . . . 5 . . . . AOE 149 | . 6 . . 37 . 25 81 . . . . Terrain Rammed . | . . . . . . . . . . . . Walls Destroyed . | . . . . . . . . . . . . Machines Disabled . | . . . . . . . . . . . . Actions | -11 -10 -10 -9 -9 -9 -8 -8 -8 -7 -7 -7 --------- Run | Scr Mat Min Mat Min Exi Min Mat Gar Fac Was Fac Total 2801 | 70 212 47 233 190 280 302 820 103 344 106 94 Wait 35 | . 2 . 2 5 . 1 13 . 7 . 5 Move 2317 | 41 177 47 179 155 265 270 606 89 300 100 88 Hop . | . . . . . . . . . . . . Pick Up 55 | 6 5 . 8 1 3 4 19 . 8 1 . Fast Attach 17 | 4 . . 4 . 4 . 4 . . 1 . Attach 18 | 3 2 . 2 . . 1 6 . 2 1 1 Detach 5 | . 2 . . . 2 . 1 . . . . Swap 113 | . 2 . 6 6 2 8 72 6 9 2 . Drop 57 | . 1 . 15 4 4 1 24 . 7 1 . Fire 169 | 16 21 . 17 18 . 16 72 8 1 . . Melee 10 | . . . . . . . . . 10 . . Ram . | . . . . . . . . . . . . Kick . | . . . . . . . . . . . . Crush 5 | . . . . 1 . 1 3 . . . . Escape Stasis . | . . . . . . . . . . . . Rewire . | . . . . . . . . . . . . Trap . | . . . . . . . . . . . . Miscellaneous . | . . . . . . . . . . . . Route ------- -11/Scrapyard -10/Materials (discovered 3 exits: *Mat / *Min x2) -10/Mines -9/Materials (discovered 2 exits: *Mat / [*Min]) -9/Mines (discovered 2 exits: *Mat / *Exi) -9/Exiles -8/Mines -8/Materials (discovered 3 exits: *Fac x2 / Gar) -8/Garrison -7/Factory -7/Waste -7/Factory History --------- Turn | Location | Event 10 | -11/Scrapyard | Discovered new exit (range 14) 114 | -11/Scrapyard | Entered Materials 176 | -10/Materials | Discovered new exit (range 11) 180 | -10/Materials | Central database locked down 231 | -10/Materials | Discovered new exit (range 16) 283 | -10/Materials | Identified exit to Mines 307 | -10/Materials | Build established: Mutant 474 | -10/Materials | Entered Mines 535 | -10/Mines | Discovered new exit (range 11) 550 | -10/Mines | Entered Materials 550 | -9/Materials | Evolved 2 slots: Propulsion x1, Utility x1 615 | -9/Materials | Discovered new exit (range 15) 765 | -9/Materials | Discovered new exit (range 11) 919 | -9/Materials | Entered Mines 920 | -9/Mines | Learned location of Storage (-9) 966 | -9/Mines | Build established: Scavenger-Mutant 1196 | -9/Mines | Discovered new exit (range 2) 1226 | -9/Mines | Deemed a non-threat by the Exiles lab entrance 1226 | -9/Mines | Discovered new exit (range 5) 1233 | -9/Mines | Entered Exiles 1273 | -9/Exiles | Met 8R-AWN 1297 | -9/Exiles | Met EX-HEX 1412 | -9/Exiles | Met EX-BIN 1429 | -9/Exiles | Aligned with FarCom system 1431 | -9/Exiles | Given EX-Vault access code 1468 | -9/Exiles | Opened EX-Vault 1482 | -9/Exiles | Found Supersonic Drone Bay 1517 | -9/Exiles | Warned to stay clear of 0b10 Research branches 1570 | -9/Exiles | Met EX-DEC 1660 | -9/Exiles | Discovered new exit (range 10) 1672 | -9/Exiles | Left Exiles lab with Supersonic Drone Bay 1672 | -9/Exiles | Entered Mines 1976 | -8/Mines | Build established: Scavenger-Skirmisher 2153 | -8/Mines | Discovered new exit (range 10) 2168 | -8/Mines | Entered Materials 2168 | -8/Materials | Evolved 2 slots: Utility x2 2349 | -8/Materials | Repaired Lgt. Treads 2711 | -8/Materials | Discovered new exit (range 16) 3371 | -8/Materials | Discovered new exit (range 8) 3452 | -8/Materials | Destroyed 7 combat bots 3502 | -8/Materials | Identified exit to Garrison 3504 | -8/Materials | Entered Garrison 3522 | -8/Garrison | Triggered checkpoint 3563 | -8/Garrison | Triggered checkpoint 3648 | -8/Garrison | Discovered new exit (range 10) 3671 | -8/Garrison | Installed Relay Interface Framework 3679 | -8/Garrison | Entered Factory 3679 | -7/Factory | Evolved 2 slots: Utility x1, Weapon x1 3987 | -7/Factory | Build established: Scavenger-Assassin 4219 | -7/Factory | Sucked down chute 4219 | -7/Factory | Entered Waste 4224 | -7/Waste | Discovered new exit (range 58) 4232 | -7/Waste | Spotted C-40 Crusher 4234 | -7/Waste | EMP discharged 4234 | -7/Waste | System corruption reached 10% 4245 | -7/Waste | Spotted C-40 Crusher 4282 | -7/Waste | Spotted C-40 Crusher 4291 | -7/Waste | Spotted C-40 Crusher 4294 | -7/Waste | Crushed by Compactor (1 part destroyed, 2 dropped) 4299 | -7/Waste | Crushed by Compactor (1 part destroyed, 2 dropped) 4300 | -7/Waste | Released all parts (8) 4307 | -7/Waste | Spotted C-40 Crusher 4308 | -7/Waste | Spotted C-40 Crusher 4329 | -7/Waste | Entered Factory 4380 | -7/Factory | Self-destructed Last Messages --------------- 04302_ Plasma Cannon crushed. 04304_ Lrg. Storage Unit crushed. 04304_ Lgt. Treads crushed. 04304_ Weapon Cycler crushed. 04304_ Katana crushed. 04304_ Transmission Jammer crushed. 04306_ Lgt. Treads crushed. 04306_ Imp. Cooling System crushed. 04317_ System corrupted: Component data lost. 04324_ ALERT: Foreign system detected. Charging EMP. 04326_ Acquired System Restoration Module. LOCATION=UNKNOWN GOAL=ESCAPE 04329_ Receiving FarCom transmissions... 04339_ Detecting nearby Garrison Access. 04345_ 65FMG=WOOUBTO/T5 7GRYAU7L4ZFLOOXH#D1 04364_ System corrupted: Matter fused (-10). 04367_ Acquired 164 matter. 04378_ Trailblazer released from Supersonic Drone Bay. 04379_ Trailblazer destroyed. Map ----- +----------------------------------------------------+ | "" "" "" #???# #???? | | #???# [ #???? | | % #???# #???? | | ""######### #???# #???? | | ??????????# ###########+######???? | | ??????????# #???? | | ??????????# ##+###?? | | ??????????# # #? | | ??????????# # #? | | ########### # #? | | # ###### # #? | | " # # # #######? | | F # # + #???? | | "" """ # # # #???? | | "" """ # # # #???? | | ! """ + # # #???? | | # # # #???? | | """ """ # ###### #???? | | """ """ # ###??# #???? | | """ """ # #??# #???? | | # #### #???? | | # #???? | | ########### ####### #???? | | ??????????# #?????# #???? | | ??????????###########+#####???## ##??? | | ?????????????????# @##### #??? | | ?????????????????# """ + #??? | | ?????????????????# ""R" ##### #??? | | ?????????????????# "" " #??###+####? | | ?????????????????# #??# ! #? | | ?????????????????# """ #??# [ #? | | ?????????????????# """ ] #??# //[#? | | ?????????????????# """ #??# //[#? | | ?????????????????# #??# //[#? | | ?????????????????##########??#! #? | | ?????????????????????????????########? | | ?????????????????????????????????????? | | ?????????????????????????????????????? | | ?????????????????????????????????????? | | ?????????????????????????????????????? | | ?????????????????????????????????????? | | ?????????????????????????????????????? | | ?????????????????????????????????????? | | ?????????????????????????????????????? | | ?????????????????????????????????????? | | ?????????????????????????????????????? | | ?????????????????????????????????????? | | ?????????????????????????????????????? | | ?????????????????????????????????????? | | ?????????????????????????????????????? | +----------------------------------------------------+ Best States ------------- Heat Dissipation 45 Energy Generation 16 Energy Capacity 290 Matter Stores 300 Matter Capacity 300 Sight Range 22 Terrain Scan Range 20 Terrain Scan Density 85 Armor Coverage 225 Weapon Shielding 66 Evasion (%) 50 Recoil Reduction 3 Defensive Hacking 10 Item Schematics ----------------- Adv. Terrain Scanner | -8/Materials | Hacked Robot Schematics ------------------ None Fabricated ------------ Nothing Alien Tech Used ----------------- None Achievements -------------- None Challenges ------------ None Game ------ Seed ArmoredHeavyReconstructor Manual? 0 Play Time 00:55:24 Cumulative 494.5 hours Start 2022.01.22 @ 23:03:57 End 2022.01.23 @ 01:42:45 Sessions 5 Manual Loads 0 Difficulty Rogue Special Mode None Game No. 237 Rogue 110 Adventurer 125 Explorer 2 Win Type - Total 44 Types 37/3/2/0/1/0/0/0/1 Lore% 65 Gallery% 85 Achievement% 66 Wizard Run 0 Options --------- ASCII 0 Keyboard 1 Movement Numpad Keybinds 0 Fullscreen 1 Font 36/TerminusFine Map View 76x50 Tactical HUD 1 Map Filters NONE Filters NONE Steam 1 RUN: 71612b55-5ab8-417c-a226-29c3eb620e55